[Event "*** Titled Tuesday Blitz"]
[Site "Chess.com"]
[Date "2021.03.02"]
[Round "6"]
[White "Kobalia"]
[Black "AryanTari"]
[Result "1-0"]
[WhiteElo "2707"]
[BlackElo "2885"]
[TimeControl "180+1"]
[EndTime "11:07:18 PST"]
[Termination "Kobalia won on time"]

1. e4 {[%clk 0:03:00.9]} 1... c6 {[%clk 0:02:56]} 2. Nf3 {[%clk 0:02:58.9]} 2...
d5 {[%clk 0:02:56.9]} 3. exd5 {[%clk 0:02:58.1]} 3... cxd5 {[%clk 0:02:57.2]} 4.
Ne5 {[%clk 0:02:58.6]} 4... Nf6 {[%clk 0:02:55.6]} 5. d4 {[%clk 0:02:57.8]} 5...
g6 {[%clk 0:02:55.6]} 6. Bb5+ {[%clk 0:02:57.2]} 6... Nbd7 {[%clk 0:02:55.6]} 7.
O-O {[%clk 0:02:56.7]} 7... Bg7 {[%clk 0:02:55.8]} 8. Re1 {[%clk 0:02:56.8]}
8... O-O {[%clk 0:02:55.8]} 9. Nf3 {[%clk 0:02:53.3]} 9... Nb8 {[%clk
0:02:46.1]} 10. h3 {[%clk 0:02:51.9]} 10... Nc6 {[%clk 0:02:42.4]} 11. c3 {[%clk
0:02:51.9]} 11... Ne4 {[%clk 0:02:34.2]} 12. Nbd2 {[%clk 0:02:50.4]} 12... Nxd2
{[%clk 0:02:26.5]} 13. Bxd2 {[%clk 0:02:49]} 13... Qb6 {[%clk 0:02:26.7]} 14.
Qb3 {[%clk 0:02:27.5]} 14... e6 {[%clk 0:01:50.5]} 15. Bd3 {[%clk 0:02:27]}
15... Qc7 {[%clk 0:01:47.1]} 16. Qd1 {[%clk 0:02:21.5]} 16... a6 {[%clk
0:01:40.5]} 17. Qc1 {[%clk 0:02:20.5]} 17... b5 {[%clk 0:01:35.6]} 18. Bh6
{[%clk 0:02:19.9]} 18... Qe7 {[%clk 0:01:32.9]} 19. Qf4 {[%clk 0:02:13.1]} 19...
Bxh6 {[%clk 0:01:24.6]} 20. Qxh6 {[%clk 0:02:12.2]} 20... Qf6 {[%clk 0:01:25.3]}
21. Ne5 {[%clk 0:02:11.4]} 21... Nxe5 {[%clk 0:01:20.1]} 22. Rxe5 {[%clk
0:02:10.8]} 22... Qg7 {[%clk 0:01:20.3]} 23. Qf4 {[%clk 0:02:09.7]} 23... Bd7
{[%clk 0:01:12.9]} 24. h4 {[%clk 0:02:07.9]} 24... Rae8 {[%clk 0:00:55.4]} 25.
Rae1 {[%clk 0:02:05.8]} 25... f6 {[%clk 0:00:54.4]} 26. R5e3 {[%clk 0:02:00]}
26... e5 {[%clk 0:00:54.7]} 27. dxe5 {[%clk 0:01:59.4]} 27... fxe5 {[%clk
0:00:54.9]} 28. Qg3 {[%clk 0:01:59.4]} 28... e4 {[%clk 0:00:49.6]} 29. Bc2
{[%clk 0:01:59.1]} 29... Qf6 {[%clk 0:00:42.1]} 30. Bb3 {[%clk 0:01:57.6]} 30...
Be6 {[%clk 0:00:42.7]} 31. f3 {[%clk 0:01:51.2]} 31... Rd8 {[%clk 0:00:17.9]}
32. fxe4 {[%clk 0:01:48]} 32... d4 {[%clk 0:00:18.5]} 33. Rf3 {[%clk 0:01:45.6]}
33... Qe7 {[%clk 0:00:14.6]} 34. Rxf8+ {[%clk 0:01:42.4]} 34... Rxf8 {[%clk
0:00:13.4]} 35. Qe5 {[%clk 0:01:35.6]} 35... Re8 {[%clk 0:00:10.3]} 36. Bxe6+
{[%clk 0:01:31.3]} 36... Qxe6 {[%clk 0:00:10.5]} 37. Qxe6+ {[%clk 0:01:31.5]}
37... Rxe6 {[%clk 0:00:11.4]} 38. cxd4 {[%clk 0:01:31.7]} 38... Rc6 {[%clk
0:00:12.3]} 39. Re2 {[%clk 0:01:30.9]} 39... Kf7 {[%clk 0:00:12.5]} 40. Kf2
{[%clk 0:01:30.2]} 40... Rc1 {[%clk 0:00:12.5]} 41. Ke3 {[%clk 0:01:29.3]} 41...
Ke6 {[%clk 0:00:13]} 42. e5 {[%clk 0:01:05.5]} 42... Kd5 {[%clk 0:00:12.6]} 43.
Kd2 {[%clk 0:01:05.4]} 43... Rc8 {[%clk 0:00:05.4]} 44. Kd3 {[%clk 0:01:03.5]}
44... Rc4 {[%clk 0:00:03.5]} 45. e6 {[%clk 0:01:03.4]} 45... Rxd4+ {[%clk
0:00:04.1]} 46. Kc3 {[%clk 0:01:03.5]} 46... Rc4+ {[%clk 0:00:04.7]} 47. Kb3
{[%clk 0:01:03.1]} 47... Rc8 {[%clk 0:00:03.4]} 48. e7 {[%clk 0:01:03.2]} 48...
Re8 {[%clk 0:00:03.4]} 49. Kb4 {[%clk 0:01:03.3]} 49... Kc6 {[%clk 0:00:01.8]}
50. Ka5 {[%clk 0:01:03]} 50... Kb7 {[%clk 0:00:02.3]} 51. g4 {[%clk 0:01:02.1]}
51... h6 {[%clk 0:00:02.2]} 52. Re6 {[%clk 0:01:00.5]} 52... g5 {[%clk
0:00:01.5]} 53. h5 {[%clk 0:01:00.3]} 53... Kc7 {[%clk 0:00:01.5]} 54. Kxa6
{[%clk 0:00:58.9]} 54... Kd7 {[%clk 0:00:02.2]} 55. Re4 {[%clk 0:00:56.2]} 1-0

[Event "*** Titled Tuesday Blitz"]
[Site "Chess.com"]
[Date "2021.03.02"]
[Round "6"]
[White "wonderfultime"]
[Black "Witik"]
[Result "1-0"]
[WhiteElo "2919"]
[BlackElo "2714"]
[TimeControl "180+1"]
[EndTime "11:07:20 PST"]
[Termination "wonderfultime won by resignation"]

1. d4 {[%clk 0:03:00.9]} 1... d5 {[%clk 0:02:59.4]} 2. Nf3 {[%clk 0:03:01.1]}
2... e6 {[%clk 0:02:59.6]} 3. Bf4 {[%clk 0:03:01.5]} 3... Bd6 {[%clk 0:02:58.8]}
4. e3 {[%clk 0:03:02]} 4... Bxf4 {[%clk 0:02:58.4]} 5. exf4 {[%clk 0:03:02.2]}
5... c5 {[%clk 0:02:59]} 6. c3 {[%clk 0:03:02.5]} 6... Qc7 {[%clk 0:02:56.3]} 7.
Qd2 {[%clk 0:02:54.5]} 7... Nf6 {[%clk 0:02:55.3]} 8. Bd3 {[%clk 0:02:54.5]}
8... O-O {[%clk 0:02:43.7]} 9. O-O {[%clk 0:02:54.4]} 9... b6 {[%clk 0:02:43.6]}
10. Re1 {[%clk 0:02:53.3]} 10... Ba6 {[%clk 0:02:37]} 11. Bc2 {[%clk 0:02:53.4]}
11... Nc6 {[%clk 0:02:32.5]} 12. Qe3 {[%clk 0:02:50.5]} 12... Rac8 {[%clk
0:01:56.6]} 13. Na3 {[%clk 0:02:18]} 13... Ne7 {[%clk 0:01:19.2]} 14. Rad1
{[%clk 0:02:12.5]} 14... Nf5 {[%clk 0:01:14.3]} 15. Qd2 {[%clk 0:02:05.3]} 15...
Ne4 {[%clk 0:01:06.1]} 16. Qc1 {[%clk 0:01:52.8]} 16... Rfe8 {[%clk 0:00:33.8]}
17. Nb1 {[%clk 0:01:50.1]} 17... cxd4 {[%clk 0:00:27.3]} 18. Nxd4 {[%clk
0:01:51]} 18... Nfd6 {[%clk 0:00:18.1]} 19. Nd2 {[%clk 0:01:47.6]} 19... Nf6
{[%clk 0:00:15.1]} 20. N2f3 {[%clk 0:01:45.2]} 20... b5 {[%clk 0:00:13.1]} 21.
a3 {[%clk 0:01:44.8]} 21... Qb6 {[%clk 0:00:12.6]} 22. Ne5 {[%clk 0:01:42.6]}
22... Bb7 {[%clk 0:00:12.6]} 23. Re3 {[%clk 0:01:35.9]} 23... a5 {[%clk
0:00:12.1]} 24. Rg3 {[%clk 0:01:31.5]} 24... Nde4 {[%clk 0:00:07.1]} 25. Re3
{[%clk 0:00:25.2]} 25... b4 {[%clk 0:00:07.5]} 26. axb4 {[%clk 0:00:26.1]} 26...
axb4 {[%clk 0:00:08.4]} 27. Ba4 {[%clk 0:00:20.8]} 27... Red8 {[%clk 0:00:07.5]}
28. f3 {[%clk 0:00:21.4]} 28... Nd6 {[%clk 0:00:07.5]} 29. Bc2 {[%clk
0:00:17.7]} 29... g6 {[%clk 0:00:06.1]} 30. Qd2 {[%clk 0:00:17.5]} 30... bxc3
{[%clk 0:00:06.2]} 31. bxc3 {[%clk 0:00:18.4]} 31... Nc4 {[%clk 0:00:05.9]} 32.
Nxc4 {[%clk 0:00:18.2]} 32... Rxc4 {[%clk 0:00:06.8]} 33. Bd3 {[%clk 0:00:17.7]}
33... Rcc8 {[%clk 0:00:06.7]} 34. Bf1 {[%clk 0:00:17.4]} 34... Kg7 {[%clk
0:00:07.2]} 35. Qf2 {[%clk 0:00:17.7]} 35... Ba6 {[%clk 0:00:07.5]} 36. Rxe6
{[%clk 0:00:16.7]} 36... Rd6 {[%clk 0:00:03]} 37. Nf5+ {[%clk 0:00:13.6]} 37...
gxf5 {[%clk 0:00:03.6]} 38. Qxb6 {[%clk 0:00:14.5]} 38... Rdc6 {[%clk
0:00:03.9]} 39. Rxc6 {[%clk 0:00:14.3]} 1-0

[Event "*** Titled Tuesday Blitz"]
[Site "Chess.com"]
[Date "2021.03.02"]
[Round "6"]
[White "Babujj"]
[Black "FredyMatsuura"]
[Result "1-0"]
[WhiteElo "2457"]
[BlackElo "2324"]
[TimeControl "180+1"]
[EndTime "11:07:20 PST"]
[Termination "Babujj won by resignation"]

1. e4 {[%clk 0:02:58.7]} 1... c5 {[%clk 0:02:57.6]} 2. Nf3 {[%clk 0:02:58.5]}
2... d6 {[%clk 0:02:55.8]} 3. d4 {[%clk 0:02:59]} 3... cxd4 {[%clk 0:02:55.4]}
4. Qxd4 {[%clk 0:02:59.9]} 4... Nf6 {[%clk 0:02:55.8]} 5. e5 {[%clk 0:02:59.7]}
5... dxe5 {[%clk 0:02:45.2]} 6. Qxd8+ {[%clk 0:03:00.6]} 6... Kxd8 {[%clk
0:02:45.8]} 7. Nxe5 {[%clk 0:03:01.2]} 7... Ke8 {[%clk 0:02:45.9]} 8. Nc3 {[%clk
0:03:01.2]} 8... a6 {[%clk 0:02:44.1]} 9. Bg5 {[%clk 0:02:59.4]} 9... Nbd7
{[%clk 0:02:42.9]} 10. Nd3 {[%clk 0:02:35.1]} 10... e6 {[%clk 0:02:37.9]} 11.
O-O-O {[%clk 0:02:34.8]} 11... Nc5 {[%clk 0:02:30.5]} 12. Nxc5 {[%clk
0:02:26.1]} 12... Bxc5 {[%clk 0:02:29.7]} 13. Ne4 {[%clk 0:02:25.9]} 13... Be7
{[%clk 0:02:20.5]} 14. Nd6+ {[%clk 0:02:24.9]} 14... Bxd6 {[%clk 0:02:18.8]} 15.
Rxd6 {[%clk 0:02:25.8]} 15... h6 {[%clk 0:02:06.7]} 16. Bxf6 {[%clk 0:02:25.9]}
16... gxf6 {[%clk 0:02:06.2]} 17. Be2 {[%clk 0:02:25.2]} 17... b6 {[%clk
0:01:52.6]} 18. Rxb6 {[%clk 0:02:15]} 18... Ke7 {[%clk 0:01:46]} 19. Rd1 {[%clk
0:02:09.4]} 19... Ra7 {[%clk 0:01:43.8]} 20. c4 {[%clk 0:02:02.8]} 20... Bd7
{[%clk 0:01:37.4]} 21. b4 {[%clk 0:01:58]} 21... a5 {[%clk 0:01:31.5]} 22. b5
{[%clk 0:01:55.9]} 22... Rc8 {[%clk 0:01:28.1]} 23. a4 {[%clk 0:01:52.2]} 23...
Rc5 {[%clk 0:01:27.7]} 24. Kb2 {[%clk 0:01:51.3]} 24... e5 {[%clk 0:01:14.7]}
25. Rd5 {[%clk 0:01:40.2]} 25... Rc8 {[%clk 0:01:07.3]} 26. Rdd6 {[%clk
0:00:55.6]} 26... Be6 {[%clk 0:01:06]} 27. Rdc6 {[%clk 0:00:53.7]} 27... Rd8
{[%clk 0:01:04.8]} 28. Kc3 {[%clk 0:00:52.8]} 28... f5 {[%clk 0:00:59.7]} 29.
Ra6 {[%clk 0:00:47.4]} 29... Rad7 {[%clk 0:00:59]} 30. b6 {[%clk 0:00:47.2]}
30... Rd2 {[%clk 0:00:57.6]} 31. Rc7+ {[%clk 0:00:45.8]} 31... Kf6 {[%clk
0:00:53.4]} 32. Bf1 {[%clk 0:00:35.6]} 32... Rd1 {[%clk 0:00:51.5]} 33. b7
{[%clk 0:00:29.3]} 33... Rxf1 {[%clk 0:00:25.5]} 34. Rc8 {[%clk 0:00:27.3]}
34... Rdd1 {[%clk 0:00:18.1]} 35. b8=Q {[%clk 0:00:25.9]} 35... Rc1+ {[%clk
0:00:18.1]} 36. Kd2 {[%clk 0:00:26]} 36... f4 {[%clk 0:00:12]} 37. Rxe6+ {[%clk
0:00:22.7]} 37... Kxe6 {[%clk 0:00:09.6]} 38. Re8+ {[%clk 0:00:19.4]} 38... Kf5
{[%clk 0:00:07.9]} 39. Qxe5+ {[%clk 0:00:19.1]} 1-0

[Event "*** Titled Tuesday Blitz"]
[Site "Chess.com"]
[Date "2021.03.02"]
[Round "6"]
[White "Nayemhaque22"]
[Black "SanchezKelvin"]
[Result "0-1"]
[WhiteElo "2305"]
[BlackElo "2442"]
[TimeControl "180+1"]
[EndTime "11:07:20 PST"]
[Termination "SanchezKelvin won by resignation"]

1. d4 {[%clk 0:02:59.7]} 1... Nf6 {[%clk 0:02:44.3]} 2. Nf3 {[%clk 0:02:59.9]}
2... c5 {[%clk 0:02:43.3]} 3. c3 {[%clk 0:02:58.6]} 3... d5 {[%clk 0:02:42.6]}
4. Bf4 {[%clk 0:02:57]} 4... Nc6 {[%clk 0:02:42.2]} 5. Nbd2 {[%clk 0:02:55]}
5... Qb6 {[%clk 0:02:40.9]} 6. dxc5 {[%clk 0:02:55]} 6... Qxb2 {[%clk
0:02:40.4]} 7. Nb3 {[%clk 0:02:51.3]} 7... Qxc3+ {[%clk 0:02:34.7]} 8. Bd2
{[%clk 0:02:51.3]} 8... Qc4 {[%clk 0:02:34.6]} 9. e3 {[%clk 0:02:51.2]} 9... Qa4
{[%clk 0:02:32.5]} 10. Nfd4 {[%clk 0:02:46.8]} 10... Nxd4 {[%clk 0:02:23.8]} 11.
exd4 {[%clk 0:02:44.9]} 11... Bg4 {[%clk 0:02:17.9]} 12. Be2 {[%clk 0:02:39.2]}
12... Bxe2 {[%clk 0:02:16.9]} 13. Qxe2 {[%clk 0:02:40.1]} 13... e6 {[%clk
0:02:16.5]} 14. Na5 {[%clk 0:02:36.6]} 14... Qxd4 {[%clk 0:02:11.6]} 15. Qb5+
{[%clk 0:02:36.1]} 15... Nd7 {[%clk 0:02:11.1]} 16. Rc1 {[%clk 0:02:29]} 16...
Bxc5 {[%clk 0:01:52.5]} 17. Nxb7 {[%clk 0:02:18]} 17... Qxf2+ {[%clk 0:01:44.6]}
18. Kd1 {[%clk 0:02:17.8]} 18... a6 {[%clk 0:01:32]} 19. Qc6 {[%clk 0:02:12.6]}
19... Qxg2 {[%clk 0:01:14.5]} 20. Nxc5 {[%clk 0:02:10.3]} 20... O-O {[%clk
0:01:01.3]} 21. Re1 {[%clk 0:01:47.5]} 21... Nxc5 {[%clk 0:00:56.6]} 22. Qxc5
{[%clk 0:01:45.5]} 22... Qxh2 {[%clk 0:00:46.7]} 23. Qg1 {[%clk 0:01:40.3]}
23... Qh5+ {[%clk 0:00:44.8]} 24. Re2 {[%clk 0:01:39.7]} 24... e5 {[%clk
0:00:38.5]} 25. Rc5 {[%clk 0:01:34]} 25... Rad8 {[%clk 0:00:33.6]} 26. Qg2
{[%clk 0:01:31.7]} 26... e4 {[%clk 0:00:27.9]} 27. Qxe4 {[%clk 0:01:27.2]} 27...
Rfe8 {[%clk 0:00:20.3]} 28. Qxe8+ {[%clk 0:01:26.5]} 28... Rxe8 {[%clk
0:00:19.8]} 29. Be3 {[%clk 0:01:24]} 29... Qh1+ {[%clk 0:00:17.8]} 30. Re1
{[%clk 0:01:22.9]} 30... Qf3+ {[%clk 0:00:18]} 31. Kd2 {[%clk 0:01:23.4]} 31...
h6 {[%clk 0:00:18]} 32. Rc3 {[%clk 0:01:21.8]} 32... d4 {[%clk 0:00:15.1]} 33.
Bxd4 {[%clk 0:01:21.2]} 33... Qg2+ {[%clk 0:00:14.8]} 34. Kd1 {[%clk 0:01:21.2]}
34... Rxe1+ {[%clk 0:00:13]} 35. Kxe1 {[%clk 0:01:22.1]} 35... Qe4+ {[%clk
0:00:12.1]} 36. Be3 {[%clk 0:01:22.6]} 36... Qb1+ {[%clk 0:00:12.4]} 37. Ke2
{[%clk 0:01:19]} 37... Qxa2+ {[%clk 0:00:12]} 38. Bd2 {[%clk 0:01:19.9]} 38...
Qe6+ {[%clk 0:00:11.2]} 39. Re3 {[%clk 0:01:20]} 39... Qc4+ {[%clk 0:00:10.7]}
40. Ke1 {[%clk 0:01:19.4]} 40... g5 {[%clk 0:00:10.8]} 41. Rh3 {[%clk
0:01:17.8]} 41... Qe6+ {[%clk 0:00:08.8]} 42. Re3 {[%clk 0:01:17.2]} 42... Qxe3+
{[%clk 0:00:09.3]} 43. Bxe3 {[%clk 0:01:18.1]} 43... Kg7 {[%clk 0:00:10]} 44.
Kf2 {[%clk 0:01:16.8]} 44... Kg6 {[%clk 0:00:10.9]} 45. Kf3 {[%clk 0:01:15.8]}
45... f5 {[%clk 0:00:11.3]} 46. Bc5 {[%clk 0:01:15.2]} 46... f4 {[%clk
0:00:11.5]} 47. Ke4 {[%clk 0:01:14.6]} 47... h5 {[%clk 0:00:11.5]} 48. Bb6
{[%clk 0:01:12.5]} 48... h4 {[%clk 0:00:11.4]} 49. Bc7 {[%clk 0:01:12.2]} 49...
h3 {[%clk 0:00:11]} 50. Kf3 {[%clk 0:01:12.1]} 50... Kf5 {[%clk 0:00:10.8]} 51.
Kf2 {[%clk 0:01:12.3]} 51... g4 {[%clk 0:00:11.1]} 52. Kg1 {[%clk 0:01:12.1]}
52... g3 {[%clk 0:00:10.6]} 53. Kh1 {[%clk 0:01:10.3]} 53... Kg4 {[%clk
0:00:11.1]} 54. Kg1 {[%clk 0:01:10.2]} 54... f3 {[%clk 0:00:11.2]} 55. Bb6
{[%clk 0:01:08.6]} 55... h2+ {[%clk 0:00:10.5]} 56. Kh1 {[%clk 0:01:07.2]} 56...
Kh3 {[%clk 0:00:11.1]} 0-1

[Event "*** Titled Tuesday Blitz"]
[Site "Chess.com"]
[Date "2021.03.02"]
[Round "6"]
[White "Zkid"]
[Black "FairChess_on_YouTube"]
[Result "0-1"]
[WhiteElo "2825"]
[BlackElo "2955"]
[TimeControl "180+1"]
[EndTime "11:07:21 PST"]
[Termination "FairChess_on_YouTube won on time"]

1. e4 {[%clk 0:03:00.9]} 1... e5 {[%clk 0:02:56.4]} 2. Nf3 {[%clk 0:02:59.2]}
2... Nc6 {[%clk 0:02:57]} 3. Bc4 {[%clk 0:02:58.9]} 3... Bc5 {[%clk 0:02:56.2]}
4. O-O {[%clk 0:02:54]} 4... Nf6 {[%clk 0:02:55.5]} 5. d3 {[%clk 0:02:54.4]}
5... d6 {[%clk 0:02:54.3]} 6. c3 {[%clk 0:02:54.6]} 6... a6 {[%clk 0:02:53.2]}
7. a4 {[%clk 0:02:50.2]} 7... Ba7 {[%clk 0:02:53.1]} 8. Nbd2 {[%clk 0:02:39.5]}
8... h6 {[%clk 0:02:53.1]} 9. b4 {[%clk 0:02:38.6]} 9... g5 {[%clk 0:02:52.8]}
10. Bb2 {[%clk 0:02:27]} 10... Ne7 {[%clk 0:02:52.2]} 11. d4 {[%clk 0:02:23.3]}
11... Ng6 {[%clk 0:02:51.8]} 12. b5 {[%clk 0:02:04.6]} 12... g4 {[%clk
0:02:47.9]} 13. Ne1 {[%clk 0:02:04.3]} 13... a5 {[%clk 0:02:43.3]} 14. Nd3
{[%clk 0:01:59.2]} 14... h5 {[%clk 0:02:40.8]} 15. dxe5 {[%clk 0:01:54.5]} 15...
Nxe5 {[%clk 0:02:08.6]} 16. Nxe5 {[%clk 0:01:47.7]} 16... dxe5 {[%clk
0:02:09.5]} 17. Ba3 {[%clk 0:01:43.1]} 17... g3 {[%clk 0:01:53.8]} 18. Qb3
{[%clk 0:01:33.7]} 18... Rh7 {[%clk 0:01:32.8]} 19. Nf3 {[%clk 0:01:24.8]} 19...
gxf2+ {[%clk 0:00:47.5]} 20. Kh1 {[%clk 0:01:24.1]} 20... Ng4 {[%clk 0:00:48]}
21. h3 {[%clk 0:00:26.6]} 21... Qf6 {[%clk 0:00:37.4]} 22. b6 {[%clk 0:00:20.4]}
22... Qxb6 {[%clk 0:00:22.9]} 23. Bb5+ {[%clk 0:00:18.9]} 23... c6 {[%clk
0:00:21.1]} 24. Ng5 {[%clk 0:00:17.9]} 24... Rg7 {[%clk 0:00:17.8]} 25. Rad1
{[%clk 0:00:12.6]} 25... cxb5 {[%clk 0:00:14.1]} 26. Qd5 {[%clk 0:00:07.6]}
26... Rxg5 {[%clk 0:00:09.3]} 27. hxg4 {[%clk 0:00:07]} 27... hxg4 {[%clk
0:00:07.8]} 28. g3 {[%clk 0:00:07]} 28... Be6 {[%clk 0:00:07]} 29. Qd2 {[%clk
0:00:05.2]} 29... Rh5+ {[%clk 0:00:05.5]} 30. Kg2 {[%clk 0:00:05.7]} 30... Rd8
{[%clk 0:00:05.6]} 31. Qe2 {[%clk 0:00:06]} 31... Bc4 {[%clk 0:00:04.7]} 32.
Qxg4 {[%clk 0:00:05.9]} 32... Bxf1+ {[%clk 0:00:04.4]} 33. Rxf1 {[%clk
0:00:06.8]} 33... Qg6 {[%clk 0:00:04.3]} 34. Qe2 {[%clk 0:00:05.7]} 34... Qh7
{[%clk 0:00:04.2]} 35. Qxb5+ {[%clk 0:00:05.1]} 35... Rd7 {[%clk 0:00:04.8]} 36.
Kf3 {[%clk 0:00:01.2]} 36... Rh1 {[%clk 0:00:04.1]} 37. Qxe5+ {[%clk 0:00:01.1]}
37... Kd8 {[%clk 0:00:03.8]} 0-1

[Event "*** Titled Tuesday Blitz"]
[Site "Chess.com"]
[Date "2021.03.02"]
[Round "6"]
[White "A-Fier"]
[Black "ukchessbomber"]
[Result "1-0"]
[WhiteElo "2785"]
[BlackElo "2543"]
[TimeControl "180+1"]
[EndTime "11:07:21 PST"]
[Termination "A-Fier won by checkmate"]

1. d4 {[%clk 0:02:59.7]} 1... Nf6 {[%clk 0:02:59.5]} 2. Bg5 {[%clk 0:02:58.8]}
2... d5 {[%clk 0:02:58.6]} 3. Bxf6 {[%clk 0:02:35.2]} 3... exf6 {[%clk
0:02:59.5]} 4. e3 {[%clk 0:02:21]} 4... Bd6 {[%clk 0:02:55.8]} 5. g3 {[%clk
0:02:21.1]} 5... O-O {[%clk 0:02:55.4]} 6. Bg2 {[%clk 0:02:20.9]} 6... c6 {[%clk
0:02:55.5]} 7. Ne2 {[%clk 0:02:20.6]} 7... Nd7 {[%clk 0:02:55.1]} 8. O-O {[%clk
0:02:17.6]} 8... f5 {[%clk 0:02:55]} 9. b3 {[%clk 0:02:17.4]} 9... Nf6 {[%clk
0:02:55.3]} 10. c4 {[%clk 0:02:17.8]} 10... Re8 {[%clk 0:02:53.6]} 11. Nbc3
{[%clk 0:02:18.3]} 11... Bb8 {[%clk 0:02:49.1]} 12. cxd5 {[%clk 0:02:11.7]}
12... cxd5 {[%clk 0:02:48.8]} 13. Nf4 {[%clk 0:02:11.4]} 13... Be6 {[%clk
0:02:48.7]} 14. Qd3 {[%clk 0:02:06.4]} 14... Ne4 {[%clk 0:02:46.9]} 15. Rac1
{[%clk 0:02:03.9]} 15... a6 {[%clk 0:02:30.4]} 16. Na4 {[%clk 0:02:00.9]} 16...
Bd7 {[%clk 0:02:29.6]} 17. Nc3 {[%clk 0:01:55.6]} 17... Bc6 {[%clk 0:02:04.6]}
18. Rc2 {[%clk 0:01:53.9]} 18... Qa5 {[%clk 0:01:50.4]} 19. Rfc1 {[%clk
0:01:53.1]} 19... Qd8 {[%clk 0:01:39.9]} 20. b4 {[%clk 0:01:50.3]} 20... Bxf4
{[%clk 0:01:22.5]} 21. exf4 {[%clk 0:01:46.2]} 21... Rc8 {[%clk 0:01:22.5]} 22.
a3 {[%clk 0:01:40.2]} 22... h5 {[%clk 0:01:20.9]} 23. h4 {[%clk 0:01:39.5]}
23... Qf6 {[%clk 0:01:06]} 24. Nd1 {[%clk 0:01:38]} 24... Qd6 {[%clk 0:00:53.3]}
25. Ne3 {[%clk 0:01:37.4]} 25... g6 {[%clk 0:00:52.8]} 26. Qb3 {[%clk
0:01:34.6]} 26... Kg7 {[%clk 0:00:47.4]} 27. a4 {[%clk 0:01:34.9]} 27... Qd7
{[%clk 0:00:41.1]} 28. b5 {[%clk 0:01:26.4]} 28... axb5 {[%clk 0:00:36.5]} 29.
axb5 {[%clk 0:01:27.1]} 29... Bxb5 {[%clk 0:00:35.8]} 30. Rxc8 {[%clk
0:01:27.5]} 30... Rxc8 {[%clk 0:00:33.8]} 31. Rxc8 {[%clk 0:01:28.4]} 31... Qxc8
{[%clk 0:00:34.7]} 32. Qxb5 {[%clk 0:01:28.8]} 32... Qc1+ {[%clk 0:00:35.2]} 33.
Nf1 {[%clk 0:01:22.1]} 33... Qe1 {[%clk 0:00:28.1]} 34. Bxe4 {[%clk 0:01:21.3]}
34... Qxe4 {[%clk 0:00:29]} 35. Qxb7 {[%clk 0:01:20]} 35... Qxd4 {[%clk
0:00:27.3]} 36. Ne3 {[%clk 0:01:18.2]} 36... Qa1+ {[%clk 0:00:27.1]} 37. Kg2
{[%clk 0:01:16.2]} 37... d4 {[%clk 0:00:27.1]} 38. Nc4 {[%clk 0:01:16.8]} 38...
Qa2 {[%clk 0:00:09.4]} 39. Ne5 {[%clk 0:01:15.4]} 39... Kg8 {[%clk 0:00:09.5]}
40. Qd7 {[%clk 0:01:14.7]} 40... f6 {[%clk 0:00:04.8]} 41. Nxg6 {[%clk
0:01:11.7]} 41... Qf7 {[%clk 0:00:05.4]} 42. Ne7+ {[%clk 0:01:10.1]} 42... Kf8
{[%clk 0:00:05.4]} 43. Qd8+ {[%clk 0:01:10.3]} 43... Kg7 {[%clk 0:00:04.9]} 44.
Nxf5+ {[%clk 0:01:10.2]} 44... Kh7 {[%clk 0:00:03.8]} 45. Nxd4 {[%clk
0:01:10.3]} 45... f5 {[%clk 0:00:04.2]} 46. Nf3 {[%clk 0:01:10.2]} 46... Kg6
{[%clk 0:00:02.6]} 47. Ne5+ {[%clk 0:01:09.7]} 47... Kh7 {[%clk 0:00:02.9]} 48.
Nxf7 {[%clk 0:01:09]} 48... Kg7 {[%clk 0:00:03.8]} 49. Ne5 {[%clk 0:01:07.6]}
49... Kh7 {[%clk 0:00:03.7]} 50. Qe7+ {[%clk 0:01:03.5]} 50... Kh8 {[%clk
0:00:02.1]} 51. Qf8+ {[%clk 0:01:01.2]} 51... Kh7 {[%clk 0:00:02.1]} 52. Qf7+
{[%clk 0:01:02.1]} 52... Kh8 {[%clk 0:00:03]} 53. Ng6# {[%clk 0:01:00.1]} 1-0

[Event "*** Titled Tuesday Blitz"]
[Site "Chess.com"]
[Date "2021.03.02"]
[Round "6"]
[White "ulkaf961"]
[Black "1977Ivan"]
[Result "0-1"]
[WhiteElo "2403"]
[BlackElo "2769"]
[TimeControl "180+1"]
[EndTime "11:07:22 PST"]
[Termination "1977Ivan won by resignation"]

1. d4 {[%clk 0:02:52.4]} 1... Nf6 {[%clk 0:02:59.2]} 2. c4 {[%clk 0:02:49.4]}
2... c5 {[%clk 0:02:59.4]} 3. d5 {[%clk 0:02:36.9]} 3... g6 {[%clk 0:02:59.6]}
4. Nc3 {[%clk 0:02:36.5]} 4... Bg7 {[%clk 0:03:00.1]} 5. e4 {[%clk 0:02:36.9]}
5... d6 {[%clk 0:03:00.1]} 6. f4 {[%clk 0:02:37.2]} 6... O-O {[%clk 0:02:55.5]}
7. Be2 {[%clk 0:02:37]} 7... e6 {[%clk 0:02:55]} 8. Nf3 {[%clk 0:02:36.4]} 8...
exd5 {[%clk 0:02:53.8]} 9. cxd5 {[%clk 0:02:36.3]} 9... Nbd7 {[%clk 0:02:51.7]}
10. O-O {[%clk 0:02:34.8]} 10... Re8 {[%clk 0:02:49.4]} 11. Nd2 {[%clk
0:01:43.8]} 11... c4 {[%clk 0:02:48.4]} 12. Bf3 {[%clk 0:01:35.5]} 12... b5
{[%clk 0:02:47.1]} 13. Kh1 {[%clk 0:01:14.5]} 13... Nc5 {[%clk 0:02:33]} 14. e5
{[%clk 0:00:48.3]} 14... dxe5 {[%clk 0:02:31.6]} 15. fxe5 {[%clk 0:00:45.5]}
15... Rxe5 {[%clk 0:02:28.8]} 16. Nxb5 {[%clk 0:00:45.5]} 16... Nfe4 {[%clk
0:01:27.2]} 17. Nxe4 {[%clk 0:00:36.1]} 17... Nxe4 {[%clk 0:01:28.1]} 18. Bf4
{[%clk 0:00:35.6]} 18... Rxd5 {[%clk 0:01:12.5]} 19. Bxe4 {[%clk 0:00:28]} 19...
Rxd1 {[%clk 0:00:50.8]} 20. Raxd1 {[%clk 0:00:27.9]} 20... Qb6 {[%clk
0:00:24.6]} 21. Bxa8 {[%clk 0:00:25.3]} 21... Bg4 {[%clk 0:00:23.2]} 22. Bc7
{[%clk 0:00:23]} 22... Qxb5 {[%clk 0:00:19.6]} 23. Rd8+ {[%clk 0:00:22.9]} 23...
Bf8 {[%clk 0:00:19.3]} 24. Bd6 {[%clk 0:00:22.8]} 24... f5 {[%clk 0:00:18.4]}
25. Rxf8+ {[%clk 0:00:20.6]} 25... Kg7 {[%clk 0:00:18.7]} 26. Re1 {[%clk
0:00:18.8]} 26... Kh6 {[%clk 0:00:16.2]} 27. Bf4+ {[%clk 0:00:18]} 27... g5
{[%clk 0:00:15.3]} 28. Rf6+ {[%clk 0:00:15]} 28... Kh5 {[%clk 0:00:15]} 29. Bc6
{[%clk 0:00:14.6]} 29... Qb4 {[%clk 0:00:14.6]} 30. Be8+ {[%clk 0:00:14.1]}
30... Kh4 {[%clk 0:00:14]} 31. Rh6+ {[%clk 0:00:13.9]} 31... Bh5 {[%clk
0:00:14.1]} 32. g3+ {[%clk 0:00:12.3]} 32... Kh3 {[%clk 0:00:12.6]} 33. Rxh5+
{[%clk 0:00:10.5]} 33... Kg4 {[%clk 0:00:12.8]} 34. Rxg5+ {[%clk 0:00:10.9]}
34... Kf3 {[%clk 0:00:12.9]} 35. Bh5+ {[%clk 0:00:08.5]} 35... Kf2 {[%clk
0:00:11.9]} 36. Re2+ {[%clk 0:00:07.7]} 36... Kf1 {[%clk 0:00:12]} 37. Bd2
{[%clk 0:00:07.2]} 37... Qb7+ {[%clk 0:00:11.8]} 0-1